[Event "January 2 Late 2024"]
[Site "https://www.chess.com"]
[Date "2024.01.02"]
[Round "2"]
[White "Fareh, Youness"]
[Black "Xiong, Jeffery"]
[Result "0-1"]
[Board "128"]
[TimeControl "180+1"]
[WhiteFideId "9000526"]
[BlackFideId "2047640"]
[WhiteElo "2014"]
[BlackElo "3012"]
[WhiteTeam "MAR"]
[BlackTeam "USA"]
[WhiteClock "0:00:43"]
[BlackClock "0:01:49"]

1. Nf3 {[%clk 0:02:57]}  g6 {[%clk 0:03:00]} 2. c4 {[%clk 0:02:57]}  Bg7 {[%clk 0:03:01]} 3. Nc3 {[%clk 0:02:58]}  d6 {[%clk 0:03:02]} 4. d4 {[%clk 0:02:58]}  e6 {[%clk 0:03:02]} 5. g3 {[%clk 0:02:58]}  b6 {[%clk 0:03:00]} 6. Bg2 {[%clk 0:02:59]}  Bb7 {[%clk 0:03:01]} 7. O-O {[%clk 0:02:59]}  Ne7 {[%clk 0:03:01]} 8. Qc2 {[%clk 0:02:51]}  Nd7 {[%clk 0:03:01]} 9. Rb1 {[%clk 0:02:51]}  O-O {[%clk 0:03:00]} 10. b4 {[%clk 0:02:51]}  Rc8 {[%clk 0:02:58]} 11. a4 {[%clk 0:02:51]}  Bxf3 {[%clk 0:02:58]} 12. Bxf3 {[%clk 0:02:50]}  Bxd4 {[%clk 0:02:58]} 13. Nb5 {[%clk 0:02:48]}  Bg7 {[%clk 0:02:58]} 14. Nxa7 {[%clk 0:02:48]}  Rb8 {[%clk 0:02:59]} 15. Nb5 {[%clk 0:02:48]}  Ne5 {[%clk 0:02:56]} 16. Bg2 {[%clk 0:02:47]}  c6 {[%clk 0:02:56]} 17. Na3 {[%clk 0:02:41]}  d5 {[%clk 0:02:56]} 18. Rd1 {[%clk 0:02:39]}  Qc8 {[%clk 0:02:53]} 19. Bf4 {[%clk 0:02:34]}  Ra8 {[%clk 0:02:53]} 20. cxd5 {[%clk 0:02:24]}  cxd5 {[%clk 0:02:53]} 21. Qb3 {[%clk 0:02:18]}  Qa6 {[%clk 0:02:53]} 22. Nb5 {[%clk 0:02:08]}  Qxa4 {[%clk 0:02:49]} 23. Qxa4 {[%clk 0:02:06]}  Rxa4 {[%clk 0:02:49]} 24. Rdc1 {[%clk 0:02:04]}  Nc4 {[%clk 0:02:43]} 25. Nd6 {[%clk 0:01:58]}  Nxd6 {[%clk 0:02:24]} 26. Bxd6 {[%clk 0:01:57]}  Re8 {[%clk 0:02:25]} 27. Bxe7 {[%clk 0:01:46]}  Rxe7 {[%clk 0:02:25]} 28. Rc6 {[%clk 0:01:47]}  Rb7 {[%clk 0:02:13]} 29. b5 {[%clk 0:01:43]}  Bd4 {[%clk 0:02:11]} 30. e3 {[%clk 0:01:39]}  Bc5 {[%clk 0:02:10]} 31. Bf1 {[%clk 0:01:39]}  Rba7 {[%clk 0:02:07]} 32. Rc8+ {[%clk 0:01:30]}  Kg7 {[%clk 0:02:07]} 33. Kg2 {[%clk 0:01:31]}  Ra2 {[%clk 0:02:06]} 34. Kf3 {[%clk 0:01:30]}  Rd2 {[%clk 0:02:00]} 35. Bh3 {[%clk 0:01:19]}  Raa2 {[%clk 0:01:58]} 36. Rf1 {[%clk 0:01:17]}  Rab2 {[%clk 0:01:58]} 37. Rc7 {[%clk 0:01:16]}  Kf6 {[%clk 0:01:58]} 38. g4 {[%clk 0:01:11]}  h6 {[%clk 0:01:57]} 39. Rc6 {[%clk 0:01:03]}  Rxb5 {[%clk 0:01:56]} 40. Bg2 {[%clk 0:00:59]}  g5 {[%clk 0:01:56]} 41. h4 {[%clk 0:00:59]}  gxh4 {[%clk 0:01:54]} 42. Rc8 {[%clk 0:00:56]}  Rbb2 {[%clk 0:01:53]} 43. Rh8 {[%clk 0:00:56]}  Kg7 {[%clk 0:01:53]} 44. Rc8 {[%clk 0:00:53]}  Be7 {[%clk 0:01:51]} 45. Rc7 {[%clk 0:00:50]}  Bg5 {[%clk 0:01:50]} 46. Rb7 {[%clk 0:00:44]}  b5 {[%clk 0:01:50]} 47. e4 {[%clk 0:00:43]}  Rd3# {[%clk 0:01:49]} 0-1

[Event "January 2 Late 2024"]
[Site "https://www.chess.com"]
[Date "2024.01.02"]
[Round "2"]
[White "Zhu, Jiner"]
[Black "Travkina, Anastasia"]
[Result "1-0"]
[Board "132"]
[TimeControl "180+1"]
[WhiteFideId "8608059"]
[BlackFideId "24129151"]
[WhiteElo "2677"]
[BlackElo "2395"]
[WhiteTeam "CHN"]
[BlackTeam "RUS"]
[WhiteClock "0:01:43"]
[BlackClock "0:00:06"]

1. d4 {[%clk 0:03:00]}  Nf6 {[%clk 0:02:57]} 2. c4 {[%clk 0:02:58]}  c5 {[%clk 0:02:58]} 3. Nc3 {[%clk 0:02:59]}  cxd4 {[%clk 0:02:57]} 4. Qxd4 {[%clk 0:02:59]}  Nc6 {[%clk 0:02:58]} 5. Qd1 {[%clk 0:02:59]}  e6 {[%clk 0:02:56]} 6. Nf3 {[%clk 0:02:59]}  d5 {[%clk 0:02:53]} 7. cxd5 {[%clk 0:02:58]}  Nxd5 {[%clk 0:02:48]} 8. Nxd5 {[%clk 0:02:58]}  Qxd5 {[%clk 0:02:40]} 9. Qxd5 {[%clk 0:02:57]}  exd5 {[%clk 0:02:41]} 10. e3 {[%clk 0:02:57]}  Nb4 {[%clk 0:02:38]} 11. Bb5+ {[%clk 0:02:51]}  Bd7 {[%clk 0:02:36]} 12. Bxd7+ {[%clk 0:02:50]}  Kxd7 {[%clk 0:02:37]} 13. O-O {[%clk 0:02:49]}  Rd8 {[%clk 0:01:58]} 14. Bd2 {[%clk 0:02:49]}  Nc6 {[%clk 0:01:55]} 15. Bc3 {[%clk 0:02:48]}  f6 {[%clk 0:01:55]} 16. Rfd1 {[%clk 0:02:48]}  Ke6 {[%clk 0:01:53]} 17. Rd2 {[%clk 0:02:48]}  Bc5 {[%clk 0:01:49]} 18. Rad1 {[%clk 0:02:48]}  Rd6 {[%clk 0:01:43]} 19. a3 {[%clk 0:02:47]}  Rhd8 {[%clk 0:01:41]} 20. h3 {[%clk 0:02:46]}  a6 {[%clk 0:01:38]} 21. Kf1 {[%clk 0:02:42]}  Ne5 {[%clk 0:01:29]} 22. Bxe5 {[%clk 0:02:25]}  fxe5 {[%clk 0:01:25]} 23. b4 {[%clk 0:02:25]}  Ba7 {[%clk 0:01:23]} 24. Ng5+ {[%clk 0:02:25]}  Ke7 {[%clk 0:01:11]} 25. Nxh7 {[%clk 0:02:25]}  d4 {[%clk 0:01:06]} 26. exd4 {[%clk 0:02:24]}  Rxd4 {[%clk 0:01:02]} 27. Rxd4 {[%clk 0:02:23]}  Rxd4 {[%clk 0:01:02]} 28. Rxd4 {[%clk 0:02:17]}  Bxd4 {[%clk 0:01:03]} 29. Ng5 {[%clk 0:02:10]}  b5 {[%clk 0:01:01]} 30. Ne4 {[%clk 0:01:59]}  Bb2 {[%clk 0:01:00]} 31. Nc5 {[%clk 0:01:59]}  Bxa3 {[%clk 0:00:47]} 32. Nxa6 {[%clk 0:01:59]}  Kd6 {[%clk 0:00:46]} 33. Ke2 {[%clk 0:01:58]}  Kc6 {[%clk 0:00:33]} 34. Kd3 {[%clk 0:01:57]}  Kb6 {[%clk 0:00:32]} 35. Nc5 {[%clk 0:01:58]}  Bxb4 {[%clk 0:00:28]} 36. Nd7+ {[%clk 0:01:58]}  Ka5 {[%clk 0:00:27]} 37. Nxe5 {[%clk 0:01:59]}  Bc5 {[%clk 0:00:27]} 38. f4 {[%clk 0:01:56]}  b4 {[%clk 0:00:27]} 39. f5 {[%clk 0:01:48]}  Ka4 {[%clk 0:00:23]} 40. g4 {[%clk 0:01:45]}  Be7 {[%clk 0:00:22]} 41. Kc2 {[%clk 0:01:43]}  Ka3 {[%clk 0:00:21]} 42. Kb1 {[%clk 0:01:41]}  b3 {[%clk 0:00:20]} 43. Ng6 {[%clk 0:01:41]}  Bf6 {[%clk 0:00:20]} 44. h4 {[%clk 0:01:41]}  Kb4 {[%clk 0:00:19]} 45. g5 {[%clk 0:01:42]}  Bd8 {[%clk 0:00:18]} 46. Nf4 {[%clk 0:01:42]}  Kc4 {[%clk 0:00:06]} 47. Ne6 {[%clk 0:01:43]} 1-0

[Event "January 2 Late 2024"]
[Site "https://www.chess.com"]
[Date "2024.01.02"]
[Round "2"]
[White "Esmeraldas Huachi, Anderson"]
[Black "Manolache, Marius"]
[Result "1/2-1/2"]
[Board "133"]
[TimeControl "180+1"]
[WhiteFideId "3616363"]
[BlackFideId "1201530"]
[WhiteElo "2394"]
[BlackElo "2675"]
[WhiteTeam "ECU"]
[BlackTeam "ROU"]
[WhiteClock "0:00:11"]
[BlackClock "0:01:09"]

1. d4 {[%clk 0:03:00]}  Nf6 {[%clk 0:02:59]} 2. c4 {[%clk 0:03:01]}  d6 {[%clk 0:02:59]} 3. Nf3 {[%clk 0:03:00]}  c6 {[%clk 0:02:59]} 4. Bf4 {[%clk 0:03:00]}  Bf5 {[%clk 0:02:59]} 5. h3 {[%clk 0:03:00]}  h6 {[%clk 0:02:59]} 6. Nc3 {[%clk 0:03:00]}  Qa5 {[%clk 0:02:57]} 7. e3 {[%clk 0:02:54]}  Ne4 {[%clk 0:02:55]} 8. Qb3 {[%clk 0:02:54]}  Nxc3 {[%clk 0:02:52]} 9. bxc3 {[%clk 0:02:48]}  Qb6 {[%clk 0:02:50]} 10. Be2 {[%clk 0:02:47]}  Nd7 {[%clk 0:02:48]} 11. O-O {[%clk 0:02:46]}  g5 {[%clk 0:02:47]} 12. Bg3 {[%clk 0:02:44]}  Bg7 {[%clk 0:02:48]} 13. Nd2 {[%clk 0:02:42]}  Qxb3 {[%clk 0:02:44]} 14. axb3 {[%clk 0:02:41]}  O-O {[%clk 0:02:43]} 15. b4 {[%clk 0:02:37]}  Rfc8 {[%clk 0:02:42]} 16. Ra5 {[%clk 0:02:37]}  a6 {[%clk 0:02:41]} 17. Rxf5 {[%clk 0:02:36]}  e5 {[%clk 0:02:39]} 18. Ne4 {[%clk 0:02:27]}  d5 {[%clk 0:02:37]} 19. Nd6 {[%clk 0:02:18]}  Rc7 {[%clk 0:02:37]} 20. c5 {[%clk 0:01:40]}  f6 {[%clk 0:02:34]} 21. h4 {[%clk 0:01:34]}  a5 {[%clk 0:02:27]} 22. f4 {[%clk 0:01:31]}  gxf4 {[%clk 0:02:19]} 23. exf4 {[%clk 0:01:27]}  exd4 {[%clk 0:02:18]} 24. cxd4 {[%clk 0:01:26]}  axb4 {[%clk 0:02:18]} 25. Rb1 {[%clk 0:01:24]}  Ra4 {[%clk 0:02:16]} 26. Bd1 {[%clk 0:01:22]}  b3 {[%clk 0:02:16]} 27. Bf2 {[%clk 0:01:18]}  b5 {[%clk 0:02:14]} 28. cxb6 {[%clk 0:01:15]}  Nxb6 {[%clk 0:02:13]} 29. Rxb3 {[%clk 0:01:15]}  Ra1 {[%clk 0:02:09]} 30. Rxb6 {[%clk 0:01:10]}  Rxd1+ {[%clk 0:02:08]} 31. Kh2 {[%clk 0:01:11]}  Kh7 {[%clk 0:02:07]} 32. h5 {[%clk 0:01:08]}  Rd2 {[%clk 0:02:07]} 33. Bg1 {[%clk 0:01:08]}  Re7 {[%clk 0:02:02]} 34. Rxc6 {[%clk 0:01:01]}  Ree2 {[%clk 0:02:02]} 35. Rxd5 {[%clk 0:00:59]}  Rxg2+ {[%clk 0:02:01]} 36. Kh1 {[%clk 0:01:00]}  Rg3 {[%clk 0:01:59]} 37. Ne4 {[%clk 0:00:39]}  Rh3+ {[%clk 0:01:57]} 38. Bh2 {[%clk 0:00:40]}  Rhxh2+ {[%clk 0:01:55]} 39. Kg1 {[%clk 0:00:41]}  Rdg2+ {[%clk 0:01:52]} 40. Kf1 {[%clk 0:00:41]}  Ra2 {[%clk 0:01:48]} 41. Kg1 {[%clk 0:00:39]}  Rhe2 {[%clk 0:01:39]} 42. Ng3 {[%clk 0:00:15]}  Rg2+ {[%clk 0:01:39]} 43. Kf1 {[%clk 0:00:16]}  Rxg3 {[%clk 0:01:39]} 44. Rd7 {[%clk 0:00:17]}  Rf3+ {[%clk 0:01:36]} 45. Kg1 {[%clk 0:00:16]}  Rxf4 {[%clk 0:01:36]} 46. Rcc7 {[%clk 0:00:17]}  Rg4+ {[%clk 0:01:36]} 47. Kf1 {[%clk 0:00:18]}  f5 {[%clk 0:01:32]} 48. d5 {[%clk 0:00:18]}  Rd2 {[%clk 0:01:31]} 49. d6 {[%clk 0:00:18]}  f4 {[%clk 0:01:32]} 50. Ke1 {[%clk 0:00:17]}  Rd5 {[%clk 0:01:28]} 51. Ke2 {[%clk 0:00:16]}  Rg3 {[%clk 0:01:28]} 52. Kf2 {[%clk 0:00:17]}  Rdd3 {[%clk 0:01:26]} 53. Ke2 {[%clk 0:00:17]}  Rd4 {[%clk 0:01:22]} 54. Kf2 {[%clk 0:00:16]}  Rg5 {[%clk 0:01:19]} 55. Kf3 {[%clk 0:00:16]}  Kg8 {[%clk 0:01:18]} 56. Rd8+ {[%clk 0:00:16]}  Bf8 {[%clk 0:01:18]} 57. d7 {[%clk 0:00:14]}  Rg3+ {[%clk 0:01:15]} 58. Kf2 {[%clk 0:00:14]}  Kf7 {[%clk 0:01:08]} 59. Re8 {[%clk 0:00:06]}  Rd2+ {[%clk 0:01:04]} 60. Ke1 {[%clk 0:00:06]}  Rxd7 {[%clk 0:01:04]} 61. Rxf8+ {[%clk 0:00:05]}  Kxf8 {[%clk 0:01:04]} 62. Rxd7 {[%clk 0:00:06]}  Rg5 {[%clk 0:01:01]} 63. Rd6 {[%clk 0:00:05]}  Kg7 {[%clk 0:01:01]} 64. Kf2 {[%clk 0:00:05]}  Rxh5 {[%clk 0:01:01]} 65. Kf3 {[%clk 0:00:05]}  Rh4 {[%clk 0:01:01]} 66. Ra6 {[%clk 0:00:05]}  h5 {[%clk 0:01:01]} 67. Rb6 {[%clk 0:00:06]}  Rg4 {[%clk 0:01:02]} 68. Ra6 {[%clk 0:00:06]}  Kf7 {[%clk 0:01:02]} 69. Rb6 {[%clk 0:00:06]}  Kg7 {[%clk 0:01:02]} 70. Ra6 {[%clk 0:00:06]}  Rg6 {[%clk 0:01:02]} 71. Rxg6+ {[%clk 0:00:05]}  Kxg6 {[%clk 0:01:03]} 72. Kxf4 {[%clk 0:00:06]}  Kf6 {[%clk 0:01:04]} 73. Kg3 {[%clk 0:00:07]}  Kg5 {[%clk 0:01:04]} 74. Kh2 {[%clk 0:00:07]}  h4 {[%clk 0:01:05]} 75. Kg1 {[%clk 0:00:08]}  Kg4 {[%clk 0:01:06]} 76. Kh1 {[%clk 0:00:09]}  Kg3 {[%clk 0:01:07]} 77. Kg1 {[%clk 0:00:10]}  h3 {[%clk 0:01:08]} 78. Kh1 {[%clk 0:00:11]}  h2 {[%clk 0:01:09]} 1/2-1/2

[Event "January 2 Late 2024"]
[Site "https://www.chess.com"]
[Date "2024.01.02"]
[Round "2"]
[White "Skibbe, Willi"]
[Black "Palomo, Franklin Annervys"]
[Result "0-1"]
[Board "134"]
[TimeControl "180+1"]
[WhiteFideId "4682190"]
[BlackFideId "3906965"]
[WhiteElo "2393"]
[BlackElo "2664"]
[WhiteTeam "GER"]
[BlackTeam "VEN"]
[WhiteClock "0:00:26"]
[BlackClock "0:00:46"]

1. c4 {[%clk 0:03:00]}  c5 {[%clk 0:03:00]} 2. Nf3 {[%clk 0:02:55]}  Nc6 {[%clk 0:03:00]} 3. Nc3 {[%clk 0:02:55]}  g6 {[%clk 0:03:00]} 4. e3 {[%clk 0:02:54]}  Bg7 {[%clk 0:03:01]} 5. d4 {[%clk 0:02:54]}  cxd4 {[%clk 0:02:59]} 6. exd4 {[%clk 0:02:55]}  d6 {[%clk 0:02:59]} 7. d5 {[%clk 0:02:53]}  Ne5 {[%clk 0:02:59]} 8. Nxe5 {[%clk 0:02:53]}  Bxe5 {[%clk 0:02:59]} 9. Bd3 {[%clk 0:02:53]}  Bg7 {[%clk 0:03:00]} 10. h4 {[%clk 0:02:53]}  h5 {[%clk 0:02:53]} 11. Bg5 {[%clk 0:02:41]}  Nf6 {[%clk 0:02:54]} 12. O-O {[%clk 0:02:40]}  O-O {[%clk 0:02:51]} 13. Re1 {[%clk 0:02:40]}  Re8 {[%clk 0:02:45]} 14. Qd2 {[%clk 0:02:39]}  a6 {[%clk 0:02:42]} 15. a4 {[%clk 0:02:39]}  Bd7 {[%clk 0:02:42]} 16. a5 {[%clk 0:02:38]}  Rc8 {[%clk 0:02:42]} 17. b4 {[%clk 0:02:33]}  Ng4 {[%clk 0:02:35]} 18. Rac1 {[%clk 0:02:24]}  Ne5 {[%clk 0:02:36]} 19. Ne4 {[%clk 0:02:22]}  Bf5 {[%clk 0:02:30]} 20. Bf1 {[%clk 0:02:16]}  b6 {[%clk 0:02:29]} 21. axb6 {[%clk 0:02:09]}  Qxb6 {[%clk 0:02:30]} 22. c5 {[%clk 0:02:07]}  dxc5 {[%clk 0:02:25]} 23. bxc5 {[%clk 0:02:08]}  Qb8 {[%clk 0:02:26]} 24. d6 {[%clk 0:02:07]}  Qb7 {[%clk 0:02:10]} 25. Bxe7 {[%clk 0:01:58]}  Bxe4 {[%clk 0:02:06]} 26. Bxa6 {[%clk 0:01:29]}  Qxa6 {[%clk 0:02:05]} 27. Rxe4 {[%clk 0:01:29]}  Nd7 {[%clk 0:02:05]} 28. Rec4 {[%clk 0:01:22]}  Rc6 {[%clk 0:02:06]} 29. Qd5 {[%clk 0:01:18]}  Rec8 {[%clk 0:02:06]} 30. Rf4 {[%clk 0:01:12]}  Rxc5 {[%clk 0:01:58]} 31. Qxf7+ {[%clk 0:01:11]}  Kh7 {[%clk 0:01:58]} 32. Rxc5 {[%clk 0:01:10]}  Rxc5 {[%clk 0:01:59]} 33. Bg5 {[%clk 0:01:03]}  Qa1+ {[%clk 0:01:55]} 34. Kh2 {[%clk 0:01:01]}  Rxg5 {[%clk 0:01:29]} 35. hxg5 {[%clk 0:00:59]}  Qe5 {[%clk 0:01:30]} 36. g3 {[%clk 0:00:56]}  Qxd6 {[%clk 0:01:29]} 37. Re4 {[%clk 0:00:49]}  Ne5 {[%clk 0:01:28]} 38. Qb7 {[%clk 0:00:46]}  Nf3+ {[%clk 0:01:27]} 39. Kg2 {[%clk 0:00:46]}  Nxg5 {[%clk 0:01:28]} 40. Re7 {[%clk 0:00:45]}  Qf6 {[%clk 0:01:28]} 41. f4 {[%clk 0:00:43]}  Ne6 {[%clk 0:01:26]} 42. Rf7 {[%clk 0:00:39]}  Qc3 {[%clk 0:01:21]} 43. Qd7 {[%clk 0:00:38]}  Nc5 {[%clk 0:01:14]} 44. Qe7 {[%clk 0:00:34]}  Nd3 {[%clk 0:01:06]} 45. f5 {[%clk 0:00:34]}  Qc6+ {[%clk 0:00:54]} 46. Kh3 {[%clk 0:00:26]}  Qh1# {[%clk 0:00:46]} 0-1

[Event "January 2 Late 2024"]
[Site "https://www.chess.com"]
[Date "2024.01.02"]
[Round "2"]
[White "Goryachkina, Aleksandra"]
[Black "Teimouri Yadkuri, Shahdad"]
[Result "1/2-1/2"]
[Board "136"]
[TimeControl "180+1"]
[WhiteFideId "4147103"]
[BlackFideId "42515467"]
[WhiteElo "2657"]
[BlackElo "2392"]
[WhiteTeam "FID"]
[BlackTeam "IRI"]
[WhiteClock "0:00:12"]
[BlackClock "0:00:18"]

1. e4 {[%clk 0:02:59]}  c5 {[%clk 0:02:59]} 2. Nf3 {[%clk 0:02:58]}  d6 {[%clk 0:03:00]} 3. d4 {[%clk 0:02:57]}  cxd4 {[%clk 0:03:01]} 4. Nxd4 {[%clk 0:02:55]}  Nf6 {[%clk 0:03:01]} 5. Nc3 {[%clk 0:02:55]}  a6 {[%clk 0:03:02]} 6. Be2 {[%clk 0:02:49]}  e5 {[%clk 0:03:01]} 7. Nf3 {[%clk 0:02:48]}  Be7 {[%clk 0:03:01]} 8. O-O {[%clk 0:02:48]}  O-O {[%clk 0:03:00]} 9. Re1 {[%clk 0:02:47]}  b5 {[%clk 0:02:43]} 10. a4 {[%clk 0:02:47]}  b4 {[%clk 0:02:43]} 11. Nd5 {[%clk 0:02:47]}  Nxe4 {[%clk 0:02:36]} 12. Bc4 {[%clk 0:02:27]}  Nf6 {[%clk 0:02:23]} 13. Nxb4 {[%clk 0:02:26]}  Bb7 {[%clk 0:02:22]} 14. Nd5 {[%clk 0:02:20]}  Nc6 {[%clk 0:02:18]} 15. Be3 {[%clk 0:02:18]}  Nxd5 {[%clk 0:01:56]} 16. Bxd5 {[%clk 0:02:18]}  Kh8 {[%clk 0:01:56]} 17. Qd2 {[%clk 0:02:08]}  f5 {[%clk 0:01:52]} 18. Bg5 {[%clk 0:01:58]}  e4 {[%clk 0:01:40]} 19. Bxe7 {[%clk 0:01:55]}  Qxe7 {[%clk 0:01:41]} 20. Ng5 {[%clk 0:01:49]}  Rf6 {[%clk 0:01:12]} 21. Rad1 {[%clk 0:01:38]}  Ne5 {[%clk 0:01:01]} 22. f4 {[%clk 0:01:25]}  exf3 {[%clk 0:00:52]} 23. Nxf3 {[%clk 0:01:24]}  Re8 {[%clk 0:00:50]} 24. h3 {[%clk 0:01:11]}  h6 {[%clk 0:00:44]} 25. Kh1 {[%clk 0:01:10]}  g5 {[%clk 0:00:34]} 26. Bxb7 {[%clk 0:00:57]}  Qxb7 {[%clk 0:00:33]} 27. Qd4 {[%clk 0:00:57]}  Rfe6 {[%clk 0:00:29]} 28. c4 {[%clk 0:00:57]}  Kh7 {[%clk 0:00:24]} 29. Nxe5 {[%clk 0:00:49]}  dxe5 {[%clk 0:00:24]} 30. Qd7+ {[%clk 0:00:49]}  R8e7 {[%clk 0:00:19]} 31. Qxb7 {[%clk 0:00:47]}  Rxb7 {[%clk 0:00:20]} 32. Rd5 {[%clk 0:00:47]}  Rxb2 {[%clk 0:00:20]} 33. Rdxe5 {[%clk 0:00:47]}  Rxe5 {[%clk 0:00:20]} 34. Rxe5 {[%clk 0:00:46]}  Rc2 {[%clk 0:00:21]} 35. Rxf5 {[%clk 0:00:35]}  Rxc4 {[%clk 0:00:20]} 36. a5 {[%clk 0:00:29]}  Ra4 {[%clk 0:00:20]} 37. Rc5 {[%clk 0:00:28]}  Kg7 {[%clk 0:00:18]} 38. Kh2 {[%clk 0:00:27]}  Ra3 {[%clk 0:00:19]} 39. Kg1 {[%clk 0:00:26]}  Ra2 {[%clk 0:00:19]} 40. Kf1 {[%clk 0:00:25]}  Kf7 {[%clk 0:00:19]} 41. Kg1 {[%clk 0:00:22]}  Kg7 {[%clk 0:00:18]} 42. Kh2 {[%clk 0:00:22]}  Ra3 {[%clk 0:00:18]} 43. Rc7+ {[%clk 0:00:19]}  Kg8 {[%clk 0:00:17]} 44. Rc6 {[%clk 0:00:19]}  Rxa5 {[%clk 0:00:18]} 45. Rxh6 {[%clk 0:00:18]}  Kg7 {[%clk 0:00:18]} 46. Rb6 {[%clk 0:00:17]}  Ra3 {[%clk 0:00:17]} 47. Rc6 {[%clk 0:00:13]}  a5 {[%clk 0:00:17]} 48. Ra6 {[%clk 0:00:13]}  a4 {[%clk 0:00:17]} 49. Kg1 {[%clk 0:00:12]}  Ra2 {[%clk 0:00:17]} 50. Kh2 {[%clk 0:00:11]}  Ra3 {[%clk 0:00:17]} 51. Kg1 {[%clk 0:00:12]}  Ra2 {[%clk 0:00:18]} 52. Kh2 {[%clk 0:00:12]}  Ra3 {[%clk 0:00:18]} 1/2-1/2

[Event "January 2 Late 2024"]
[Site "https://www.chess.com"]
[Date "2024.01.02"]
[Round "2"]
[White "Rostomyan, Mikayel"]
[Black "Akhayan"]
[Result "1-0"]
[Board "138"]
[TimeControl "180+1"]
[WhiteFideId "13313754"]
[WhiteElo "2656"]
[BlackElo "2384"]
[WhiteTeam "ARM"]
[WhiteClock "0:00:48"]
[BlackClock "0:00:44"]

1. d4 {[%clk 0:03:00]}  a6 {[%clk 0:02:59]} 2. e4 {[%clk 0:02:59]}  e6 {[%clk 0:02:59]} 3. Nf3 {[%clk 0:02:59]}  d5 {[%clk 0:03:00]} 4. Nc3 {[%clk 0:02:58]}  Nf6 {[%clk 0:02:47]} 5. Bd3 {[%clk 0:02:51]}  dxe4 {[%clk 0:02:46]} 6. Nxe4 {[%clk 0:02:50]}  Nxe4 {[%clk 0:02:46]} 7. Bxe4 {[%clk 0:02:51]}  c5 {[%clk 0:02:46]} 8. O-O {[%clk 0:02:49]}  Nc6 {[%clk 0:02:47]} 9. Be3 {[%clk 0:02:45]}  cxd4 {[%clk 0:02:45]} 10. Nxd4 {[%clk 0:02:45]}  Nxd4 {[%clk 0:02:45]} 11. Bxd4 {[%clk 0:02:44]}  Qh4 {[%clk 0:02:22]} 12. Qf3 {[%clk 0:02:38]}  Bd6 {[%clk 0:02:18]} 13. g3 {[%clk 0:02:33]}  Qg5 {[%clk 0:02:01]} 14. h4 {[%clk 0:02:27]}  Qe7 {[%clk 0:01:49]} 15. Bxg7 {[%clk 0:02:24]}  Rg8 {[%clk 0:01:49]} 16. Bf6 {[%clk 0:02:22]}  Qc7 {[%clk 0:01:45]} 17. Bxh7 {[%clk 0:02:19]}  Rf8 {[%clk 0:01:45]} 18. Bg7 {[%clk 0:02:16]}  Bd7 {[%clk 0:01:45]} 19. Bxf8 {[%clk 0:02:16]}  Bxf8 {[%clk 0:01:46]} 20. Be4 {[%clk 0:02:13]}  O-O-O {[%clk 0:01:43]} 21. Qxf7 {[%clk 0:02:07]}  Bc5 {[%clk 0:01:43]} 22. Kg2 {[%clk 0:01:56]}  Rf8 {[%clk 0:01:41]} 23. Qg6 {[%clk 0:01:52]}  Qe5 {[%clk 0:01:32]} 24. Rad1 {[%clk 0:01:44]}  Rf6 {[%clk 0:01:29]} 25. Bxb7+ {[%clk 0:01:25]}  Kc7 {[%clk 0:01:17]} 26. Qd3 {[%clk 0:01:21]}  Bb5 {[%clk 0:01:07]} 27. c4 {[%clk 0:01:16]}  Ba4 {[%clk 0:01:04]} 28. b3 {[%clk 0:01:12]}  Qb2 {[%clk 0:00:52]} 29. bxa4 {[%clk 0:00:57]}  Rxf2+ {[%clk 0:00:51]} 30. Rxf2 {[%clk 0:00:56]}  Qxf2+ {[%clk 0:00:50]} 31. Kh3 {[%clk 0:00:54]}  Kxb7 {[%clk 0:00:49]} 32. Qd7+ {[%clk 0:00:47]}  Kb6 {[%clk 0:00:47]} 33. Qxe6+ {[%clk 0:00:48]}  Ka5 {[%clk 0:00:47]} 34. Qe1+ {[%clk 0:00:48]}  Qxe1 {[%clk 0:00:44]} 35. Rxe1 {[%clk 0:00:48]} 1-0